fUST/lending_fUST_20250720
["ID","MTS","AMOUNT","RATE_DAILY","PERIOD"]
[373345698,1752957045821,-460.0,0.00019168,2]
[373345700,1752957045830,-349.12454722,0.00019168,2]
[373345703,1752957045844,-184.72181438,0.00019168,2]
[373345705,1752957045853,-323.04318562,0.00019168,2]
[373345707,1752957045867,-136.95681438,0.00019168,2]
[373345709,1752957045879,-460.0,0.00019169,2]
[373345711,1752957045888,-226.61956696,0.00019169,2]
[373345713,1752957045902,-460.0,0.00019169,2]
[373345715,1752957045912,-460.0,0.00019169,2]
[373345717,1752957045921,-460.0,0.00019169,2]
[373345719,1752957045930,-460.0,0.00019169,2]
[373345721,1752957045939,-257.15447415,0.00019169,2]
[373345722,1752957045949,-460.0,0.00019169,2]
[373345724,1752957045959,-460.0,0.00019169,2]
[373345726,1752957045969,-460.0,0.00019169,2]
[373345728,1752957045979,-460.0,0.00019169,2]
[373345730,1752957045988,-460.0,0.00019169,2]
[373345732,1752957045998,-568.64,0.00019169,2]
[373345734,1752957046008,-460.0,0.00019169,2]
[373345736,1752957046018,-460.0,0.00019169,2]
[373345738,1752957046027,-460.0,0.00019169,2]
[373345741,1752957046037,-460.0,0.00019169,2]
[373345742,1752957046047,-460.0,0.00019169,2]
[373345745,1752957046057,-460.0,0.00019169,2]
[373345746,1752957046067,-80.84606256,0.00019169,2]
[373345750,1752957046079,-379.15393744,0.00019169,2]
[373345752,1752957046089,-460.0,0.00019169,2]
[373345755,1752957046098,-460.0,0.00019169,2]
[373345757,1752957046109,-460.0,0.00019169,2]
[373345759,1752957046119,-460.0,0.00019169,2]
[373345761,1752957046129,-460.0,0.00019169,2]
[373345763,1752957046139,-460.0,0.00019169,2]
[373345765,1752957046149,-460.0,0.00019169,2]
[373345766,1752957046159,-500.0,0.00019169,2]
[373345768,1752957046169,-500.0,0.00019169,2]
[373345770,1752957046178,-460.0,0.00019169,2]
[373345772,1752957046188,-460.0,0.00019169,2]
[373345774,1752957046198,-460.0,0.00019169,2]
[373345776,1752957046208,-460.0,0.00019169,2]
[373345778,1752957046217,-460.0,0.00019169,2]
[373345780,1752957046227,-460.0,0.00019169,2]
[373345782,1752957046238,-269.36334601,0.00019169,2]
[373345787,1752957046273,-190.63665399,0.00019169,2]
[373345789,1752957046283,-95.66634601,0.00019169,2]
[373345845,1752957046825,-314.62338929,0.00018703,2]
[373345847,1752957046834,-364.33365399,0.00019169,2]
[373345849,1752957046844,-460.0,0.00019169,2]
[373345851,1752957046853,-460.0,0.00019169,2]
[373345853,1752957046862,-460.0,0.00019169,2]
[373345854,1752957046872,-460.0,0.00019169,2]
[373345857,1752957046883,-460.0,0.00019169,2]
[373345858,1752957046892,-184.72,0.00019169,2]
[373345860,1752957046901,-460.0,0.00019169,2]
[373345862,1752957046911,-460.0,0.00019169,2]
[373345864,1752957046921,-460.0,0.00019169,2]
[373345866,1752957046930,-460.0,0.00019169,2]
[373345868,1752957046940,-460.0,0.00019169,2]
[373345870,1752957046949,-460.0,0.00019169,2]
[373345872,1752957046959,-44.74584731,0.00019169,2]
[373345875,1752957046970,-415.25415269,0.00019169,2]
[373345877,1752957046980,-300.30755981,0.00019169,2]
[373345879,1752957046991,-159.69244019,0.00019169,2]
[373345881,1752957047001,-321.90255981,0.00019169,2]
[373346317,1752958030532,236.194635,0.00013699,2]
[373346374,1752958232082,-228.66749972,0.00018325,2]
[373346375,1752958232091,-300.0,0.00018869,2]
[373346378,1752958232102,-214.0,0.00018869,2]
[373346379,1752958232112,-68.64498764,0.0001887,2]
[373346382,1752958232130,-391.35501236,0.0001887,2]
[373346384,1752958232141,-413.4079495,0.0001887,2]
[373346386,1752958232150,-460.0,0.0001887,2]
[373346388,1752958232160,-460.0,0.0001887,2]
[373346389,1752958232169,-1149.19,0.0001887,2]
[373346390,1752958232178,-460.0,0.0001887,2]
[373346391,1752958232189,-460.0,0.0001887,2]
[373346393,1752958232198,-1173.99,0.0001887,2]
[373346395,1752958232207,-539.10852178,0.0001887,2]
[373346396,1752958232217,-460.0,0.0001887,2]
[373346397,1752958232227,-492.85,0.0001887,2]
[373346398,1752958232236,-580.0096567,0.0001887,2]
[373346399,1752958232245,-460.0,0.0001887,2]
[373346400,1752958232254,-460.0,0.0001887,2]
[373346401,1752958232263,-460.0,0.0001887,2]
[373346402,1752958232273,-460.0,0.0001887,2]
[373346403,1752958232282,-460.0,0.0001887,2]
[373346404,1752958232291,-627.36,0.0001887,2]
[373346405,1752958232301,-460.0,0.0001887,2]
[373346406,1752958232311,-464.66927989,0.0001887,2]
[373346407,1752958232320,-460.0,0.0001887,2]
[373346408,1752958232330,-460.0,0.0001887,2]
[373346409,1752958232339,-460.0,0.0001887,2]
[373346410,1752958232349,-460.41031252,0.0001887,2]
[373346411,1752958232358,-460.0,0.0001887,2]
[373346412,1752958232368,-460.0,0.0001887,2]
[373346413,1752958232377,-9710.47546995,0.0001887,2]
[373346433,1752958237934,-1624.78,0.0001887,2]
[373346434,1752958237944,-444.40700613,0.0001887,2]
[373346435,1752958237954,-460.0,0.0001887,2]
[373346436,1752958237964,-23391.64935821,0.0001887,2]
[373346437,1752958237973,-460.0,0.00018871,2]
[373346438,1752958237983,-523.23,0.00018871,2]
[373346439,1752958237994,-460.0,0.00018871,2]
[373346440,1752958238005,-460.0,0.00018871,2]
[373346441,1752958238015,-460.0,0.00018871,2]
[373346442,1752958238024,-347.21753048,0.00018871,2]
[373346443,1752958238034,-460.0,0.00018871,2]
[373346444,1752958238043,-460.0,0.00018871,2]
[373346445,1752958238052,-460.0,0.00018871,2]
[373346446,1752958238062,-460.0,0.00018871,2]
[373346447,1752958238071,-500.0,0.00018871,2]
[373346448,1752958238084,-460.0,0.00018871,2]
[373346449,1752958238094,-460.0,0.00018871,2]
[373346450,1752958238103,-460.0,0.00018871,2]
[373346451,1752958238112,-460.0,0.00018871,2]
[373346452,1752958238122,-460.0,0.00018871,2]
[373346453,1752958238132,-460.0,0.00018871,2]
[373346454,1752958238142,-460.0,0.00018871,2]
[373346455,1752958238154,-236.67054617,0.00018871,2]
[373346456,1752958238164,-467.13963551,0.00018871,2]
[373346457,1752958238173,-460.0,0.00018871,2]
[373346458,1752958238190,-460.0,0.00018871,2]
[373346459,1752958238203,-460.0,0.00018871,2]
[373346460,1752958238213,-460.0,0.00018871,2]
[373346461,1752958238223,-460.0,0.00018871,2]
[373346462,1752958238233,-460.0,0.00018871,2]
[373346463,1752958238243,-460.0,0.00018871,2]
[373346464,1752958238253,-460.0,0.00018871,2]
[373346465,1752958238263,-1323.15,0.00018871,2]
[373346466,1752958238273,-460.0,0.00018871,2]
[373346467,1752958238282,-460.0,0.00018871,2]
[373346468,1752958238292,-460.0,0.00018871,2]
[373346469,1752958238301,-460.0,0.00018871,2]
[373346470,1752958238312,-678.62,0.00018871,2]
[373346471,1752958238322,-460.0,0.00018871,2]
[373346472,1752958238333,-460.0,0.00018871,2]
[373346473,1752958238342,-460.0,0.00018871,2]
[373346474,1752958238353,-608.82441221,0.00018871,2]
[373346475,1752958238363,-513.41,0.00018871,2]
[373346476,1752958238373,-401.71284279,0.00018871,2]
[373346477,1752958238386,-460.0,0.00018871,2]
[373346478,1752958238396,-460.0,0.00018871,2]
[373346479,1752958238407,-460.0,0.00018871,2]
[373346480,1752958238418,-460.0,0.00018871,2]
[373346481,1752958238428,-460.0,0.00018871,2]
[373346482,1752958238440,-460.0,0.00018871,2]
[373346483,1752958238450,-460.0,0.00018871,2]
[373346484,1752958238460,-1307.67,0.00018871,2]
[373346485,1752958238472,-460.0,0.00018871,2]
[373346486,1752958238482,-460.0,0.00018871,2]
[373346487,1752958238494,-460.0,0.00018872,2]
[373346488,1752958238503,-460.0,0.00018872,2]
[373346489,1752958238513,-460.0,0.00018872,2]
[373346490,1752958238523,-460.0,0.00018872,2]
[373346491,1752958238532,-460.0,0.00018872,2]
[373346492,1752958238543,-188.5140922,0.00018872,2]
[373346493,1752958238552,-460.0,0.00018872,2]
[373346494,1752958238562,-460.0,0.00018872,2]
[373346495,1752958238572,-460.0,0.00018872,2]
[373346496,1752958238581,-460.0,0.00018872,2]
[373346497,1752958238593,-460.0,0.00018872,2]
[373346498,1752958238604,-289.90464021,0.00018872,2]
[373346499,1752958238614,-460.0,0.00018872,2]
[373346500,1752958238623,-460.0,0.00018872,2]
[373346501,1752958238634,-460.0,0.00018872,2]
[373346502,1752958238645,-460.0,0.00018872,2]
[373346503,1752958238654,-460.0,0.00018872,2]
[373346504,1752958238664,-460.0,0.00018872,2]
[373346505,1752958238673,-460.0,0.00018872,2]
[373346506,1752958238686,-460.0,0.00018872,2]
[373346507,1752958238696,-460.0,0.00018872,2]
[373346508,1752958238705,-460.0,0.00018872,2]
[373346509,1752958238715,-292.80812658,0.00018872,2]
[373346510,1752958238724,-460.0,0.00018872,2]
[373346511,1752958238734,-235.8,0.00018872,2]
[373346512,1752958238744,-560.31337563,0.00018872,2]
[373346513,1752958238754,-460.0,0.00018872,2]
[373346514,1752958238763,-460.0,0.00018872,2]
[373346515,1752958238772,-460.0,0.00018872,2]
[373346516,1752958238782,-460.0,0.00018872,2]
[373346517,1752958238791,-500.0,0.00018872,2]
[373346518,1752958238801,-500.0,0.00018872,2]
[373346519,1752958238814,-500.0,0.00018872,2]
[373346520,1752958238824,-460.0,0.00018872,2]
[373346521,1752958238833,-460.0,0.00018872,2]
[373346522,1752958238843,-463.62597038,0.00018872,2]
[373346523,1752958238853,-460.0,0.00018872,2]
[373346524,1752958239041,-413.28915297,0.00018872,2]
[373346525,1752958239051,-460.0,0.00018872,2]
[373346526,1752958239061,-460.0,0.00018872,2]
[373346527,1752958239070,-460.0,0.00018872,2]
[373346528,1752958239079,-460.0,0.00018872,2]
[373346529,1752958239089,-460.0,0.00018872,2]
[373346530,1752958239102,-460.0,0.00018872,2]
[373346531,1752958239111,-460.0,0.00018872,2]
[373346532,1752958239121,-460.0,0.00018872,2]
[373346533,1752958239130,-460.0,0.00018872,2]
[373346534,1752958239140,-460.0,0.00018872,2]
[373346535,1752958239149,-460.0,0.00018872,2]
[373346536,1752958239159,-460.0,0.00018872,2]
[373346537,1752958239169,-648.93,0.00018872,2]
[373346538,1752958239178,-460.0,0.00018872,2]
[373346539,1752958239188,-460.0,0.00018872,2]
[373346540,1752958239199,-490.63,0.00018872,2]
[373346541,1752958239211,-460.0,0.00018872,2]
[373346542,1752958239221,-460.0,0.00018872,2]
[373346543,1752958239231,-500.0,0.00018873,2]
[373346544,1752958239241,-207.20524822,0.00018873,2]
[373346545,1752958239251,-500.0,0.00018873,2]
[373346546,1752958239261,-326.23,0.0001888,3]
[373346547,1752958239270,-326.23,0.0001888,3]
[373346548,1752958239280,-163.11,0.0001888,3]
[373346549,1752958239291,-489.36,0.0001888,3]
[373346550,1752958239300,-163.12,0.00018881,3]
[373346551,1752958239310,-897.14,0.00018885,3]
[373346552,1752958239320,-448.57,0.00018885,3]
[373346553,1752958239329,-224.28,0.00018885,3]
[373346554,1752958239339,-672.87,0.00018885,3]
[373346555,1752958239349,-500.0,0.00018889,2]
[373346556,1752958239359,-500.0,0.00018889,2]
[373346557,1752958239368,-650.55620881,0.00018889,2]
[373346558,1752958239378,-500.0,0.00018889,2]
[373346559,1752958239387,-500.0,0.00018889,2]
[373346560,1752958239397,-500.0,0.00018889,2]
[373346561,1752958239408,-238.473546,0.00018889,2]
[373346562,1752958239419,-500.0,0.00018889,2]
[373346563,1752958239428,-500.0,0.00018889,2]
[373346564,1752958239438,-500.0,0.00018889,2]
[373346565,1752958239450,-500.0,0.00018889,2]
[373346566,1752958239459,-500.0,0.00018889,2]
[373346568,1752958239469,-500.0,0.00018889,2]
[373346569,1752958239480,-500.0,0.00018889,2]
[373346570,1752958239490,-500.0,0.00018889,2]
[373346571,1752958239501,-174.06416626,0.00018889,2]
[373346572,1752958239511,-419.61123692,0.00018889,2]
[373346574,1752958239519,-500.0,0.00018889,2]
[373346576,1752958239529,-500.0,0.00018889,2]
[373346577,1752958239538,-500.0,0.00018889,2]
[373346578,1752958239547,-500.0,0.00018889,2]
[373346579,1752958239556,-500.0,0.00018889,2]
[373346580,1752958239566,-500.0,0.00018889,2]
[373346581,1752958239575,-500.0,0.00018889,2]
[373346582,1752958239585,-461.698721,0.00018889,2]
[373346583,1752958239594,-500.0,0.00018889,2]
[373346584,1752958239604,-500.0,0.00018889,2]
[373346585,1752958239613,-500.0,0.00018889,2]
[373346586,1752958239622,-500.0,0.00018889,2]
[373346587,1752958239632,-500.0,0.00018889,2]
[373346588,1752958239641,-500.0,0.00018889,2]
[373346589,1752958239650,-500.0,0.00018889,2]
[373346590,1752958239660,-500.0,0.00018889,2]
[373346591,1752958239670,-500.0,0.00018889,2]
[373346592,1752958239680,-500.0,0.00018889,2]
[373346593,1752958239689,-500.0,0.00018889,2]
[373346594,1752958239699,-500.0,0.00018889,2]
[373346595,1752958239709,-500.0,0.00018889,2]
[373346596,1752958239719,-308.42111035,0.00018889,2]
[373346597,1752958239728,-500.0,0.00018889,2]
[373346598,1752958239738,-300.0,0.00018889,2]
[373346599,1752958239747,-500.0,0.00018889,2]
[373346600,1752958239757,-500.0,0.00018889,2]
[373346601,1752958239767,-500.0,0.00018889,2]
[373346602,1752958239782,-500.0,0.00018889,2]
[373346603,1752958239792,-500.0,0.00018889,2]
[373346604,1752958239802,-500.0,0.00018889,2]
[373346605,1752958239812,-500.0,0.00018889,2]
[373346606,1752958239821,-500.0,0.00018889,2]
[373346607,1752958239831,-500.0,0.00018889,2]
[373346608,1752958239841,-500.0,0.00018889,2]
[373346609,1752958239850,-500.0,0.00018889,2]
[373346610,1752958239860,-500.0,0.00018889,2]
[373346611,1752958239870,-500.0,0.00018889,2]
[373346612,1752958239879,-500.0,0.00018889,2]
[373346613,1752958239890,-500.0,0.00018889,2]
[373346615,1752958239900,-500.0,0.00018889,2]
[373346617,1752958239910,-500.0,0.00018889,2]
[373346619,1752958239920,-500.0,0.00018889,2]
[373346620,1752958239929,-500.0,0.00018889,2]
[373346621,1752958239938,-500.0,0.00018889,2]
[373346622,1752958239948,-500.0,0.00018889,2]
[373346623,1752958239957,-500.0,0.00018889,2]
[373346624,1752958239966,-500.0,0.00018889,2]
[373346625,1752958239976,-500.0,0.00018889,2]
[373346626,1752958239985,-500.0,0.00018889,2]
[373346627,1752958239995,-500.0,0.00018889,2]
[373346628,1752958240004,-500.0,0.00018889,2]
[373346629,1752958240015,-500.0,0.00018889,2]
[373346630,1752958240023,-500.0,0.00018889,2]
[373346631,1752958240033,-500.0,0.00018889,2]
[373346632,1752958240042,-500.0,0.00018889,2]
[373346633,1752958240051,-500.0,0.00018889,2]
[373346634,1752958240061,-500.0,0.00018889,2]
[373346635,1752958240070,-500.0,0.00018889,2]
[373346636,1752958240081,-500.0,0.00018889,2]
[373346637,1752958240091,-500.0,0.00018889,2]
[373346638,1752958240102,-500.0,0.00018889,2]
[373346639,1752958240112,-500.0,0.00018889,2]
[373346640,1752958240132,-500.0,0.00018889,2]
[373346641,1752958240143,-500.0,0.00018889,2]
[373346642,1752958240153,-500.0,0.00018889,2]
[373346643,1752958240163,-500.0,0.00018889,2]
[373346644,1752958240173,-500.0,0.00018889,2]
[373346645,1752958240182,-500.0,0.00018889,2]
[373346646,1752958240193,-500.0,0.00018889,2]
[373346647,1752958240203,-500.0,0.00018889,2]
[373346648,1752958240212,-500.0,0.00018889,2]
[373346649,1752958240223,-500.0,0.00018889,2]
[373346650,1752958240234,-500.0,0.00018889,2]
[373346651,1752958240244,-500.0,0.00018889,2]
[373346652,1752958240254,-371.97276389,0.00018889,2]
[373346653,1752958240264,-500.0,0.00018889,2]
[373346654,1752958240274,-500.0,0.00018889,2]
[373346655,1752958240284,-500.0,0.00018889,2]
[373346656,1752958240294,-500.0,0.00018889,2]
[373346657,1752958240304,-500.0,0.00018889,2]
[373346658,1752958240314,-480.64364207,0.00018891,2]
[373346659,1752958240324,-460.0,0.00018891,2]
[373346660,1752958240335,-460.0,0.00018891,2]
[373346661,1752958240344,-460.0,0.00018891,2]
[373346662,1752958240354,-460.0,0.00018891,2]
[373346663,1752958240364,-460.0,0.00018891,2]
[373346664,1752958240374,-460.0,0.00018891,2]
[373346665,1752958240384,-856.82,0.00018891,2]
[373346666,1752958240394,-460.0,0.00018891,2]
[373346667,1752958240404,-732.6,0.00018891,2]
[373346668,1752958240414,-460.0,0.00018891,2]
[373346669,1752958240423,-460.0,0.00018891,2]
[373346670,1752958240433,-937.34,0.00018891,2]
[373346671,1752958240444,-460.0,0.00018891,2]
[373346672,1752958240455,-500.0,0.00018893,2]
[373346673,1752958240465,-500.0,0.00018893,2]
[373346674,1752958240474,-500.0,0.00018894,2]
[373346675,1752958240486,-498.52,0.00018894,2]
[373346676,1752958240496,-216.39681154,0.00018895,2]
[373346677,1752958240506,-9423.11190738,0.000189,2]
[373346678,1752958240515,-453.86397713,0.000189,2]
[373346679,1752958240525,-1977.71998015,0.000189,2]
[373346680,1752958240535,-1910.11348583,0.00019045,2]
[373346681,1752958240545,-9423.11190732,0.00019107,2]
[373346682,1752958240555,-460.0,0.00019144,2]
[373346683,1752958240565,-1149.19,0.00019144,2]
[373346684,1752958240575,-460.0,0.00019144,2]
[373346685,1752958240585,-1173.99,0.00019144,2]
[373346686,1752958240595,-492.85,0.00019144,2]
[373346687,1752958240605,-460.0,0.00019144,2]
[373346688,1752958240615,-460.0,0.00019144,2]
[373346689,1752958240625,-460.0,0.00019144,2]
[373346690,1752958240634,-392.51,0.00019144,2]
[373346691,1752958240652,-460.0,0.00019144,2]
[373346692,1752958240669,-627.36,0.00019144,2]
[373346693,1752958240679,-460.0,0.00019144,2]
[373346694,1752958240689,-460.0,0.00019144,2]
[373346695,1752958240699,-460.0,0.00019144,2]
[373346696,1752958240709,-1624.78,0.00019144,2]
[373346697,1752958240718,-545.98,0.00019145,2]
[373346698,1752958240727,-523.23,0.00019145,2]
[373346699,1752958240737,-460.0,0.00019145,2]
[373346700,1752958240747,-460.0,0.00019145,2]
[373346701,1752958240763,-460.0,0.00019145,2]
[373346702,1752958240772,-460.0,0.00019145,2]
[373346703,1752958240782,-460.0,0.00019145,2]
[373346704,1752958240792,-460.0,0.00019145,2]
[373346705,1752958240803,-460.0,0.00019145,2]
[373346706,1752958240812,-460.0,0.00019145,2]
[373346707,1752958240822,-1323.15,0.00019145,2]
[373346708,1752958240832,-460.0,0.00019145,2]
[373346709,1752958240841,-460.0,0.00019145,2]
[373346710,1752958240851,-678.62,0.00019145,2]
[373346711,1752958240861,-513.41,0.00019145,2]
[373346712,1752958240871,-460.0,0.00019145,2]
[373346713,1752958240881,-460.0,0.00019145,2]
[373346714,1752958240891,-460.0,0.00019145,2]
[373346715,1752958240901,-460.0,0.00019145,2]
[373346716,1752958240910,-460.0,0.00019145,2]
[373346717,1752958240920,-1307.67,0.00019145,2]
[373346718,1752958240929,-460.0,0.00019145,2]
[373346719,1752958240939,-460.0,0.00019146,2]
[373346720,1752958240948,-460.0,0.00019146,2]
[373346721,1752958240958,-155.44150554,0.00019146,2]
[373346722,1752958240967,-460.0,0.00019146,2]
[373346723,1752958240976,-462.91791883,0.00019146,2]
[373346724,1752958240986,-460.0,0.00019146,2]
[373346725,1752958240996,-648.93,0.00019146,2]
[373346726,1752958241006,-490.63,0.00019146,2]
[373346727,1752958241017,-460.0,0.00019165,2]
[373346728,1752958241028,-460.0,0.00019165,2]
[373346729,1752958241040,-460.0,0.00019165,2]
[373346730,1752958241050,-856.82,0.00019165,2]
[373346731,1752958241060,-732.6,0.00019165,2]
[373346732,1752958241070,-460.0,0.00019165,2]
[373346733,1752958241079,-460.0,0.00019165,2]
[373346734,1752958241089,-937.34,0.00019165,2]
[373346735,1752958241102,-460.0,0.00019165,2]
[373346736,1752958241112,-666.0,0.00019178,2]
[373346737,1752958241122,-388.494299,0.00019178,2]
[373346738,1752958241141,-12999.20350234,0.00019219,2]
[373346739,1752958241151,-207.4,0.00019219,2]
[373346740,1752958241160,-178.1115364,0.000193,2]
[373346741,1752958241172,-9423.11190732,0.00019314,2]
[373346742,1752958241181,-9084.56222107,0.00019319,2]
[373346743,1752958241191,-155.07746113,0.00019329,2]
[373346744,1752958241201,-58192.92830392,0.00019329,2]
[373346745,1752958241211,-510.61317147,0.00019345,2]
[373346746,1752958241222,-504.22089586,0.00019375,2]
[373346747,1752958241232,-500.0,0.00019375,2]
[373346748,1752958241241,-1149.19,0.00019418,2]
[373346749,1752958241251,-460.0,0.00019418,2]
[373346750,1752958241260,-1173.99,0.00019418,2]
[373346751,1752958241271,-492.85,0.00019418,2]
[373346752,1752958241280,-460.0,0.00019418,2]
[373346753,1752958241290,-573.84,0.00019418,2]
[373346754,1752958241300,-460.0,0.00019418,2]
[373346755,1752958241310,-627.36,0.00019418,2]
[373346756,1752958241320,-1624.78,0.00019418,2]
[373346757,1752958241329,-545.98,0.00019419,2]
[373346758,1752958241339,-523.23,0.00019419,2]
[373346759,1752958241348,-460.0,0.00019419,2]
[373346760,1752958241359,-460.0,0.00019419,2]
[373346761,1752958241368,-460.0,0.00019419,2]
[373346762,1752958241378,-460.0,0.00019419,2]
[373346763,1752958241387,-460.0,0.00019419,2]
[373346764,1752958241398,-460.0,0.00019419,2]
[373346765,1752958241407,-1323.15,0.00019419,2]
[373346766,1752958241417,-460.0,0.00019419,2]
[373346767,1752958241427,-460.0,0.00019419,2]
[373346768,1752958241436,-678.62,0.00019419,2]
[373346769,1752958241446,-513.41,0.00019419,2]
[373346770,1752958241455,-460.0,0.00019419,2]
[373346771,1752958241465,-250.38,0.00019419,2]
[373346772,1752958241475,-460.0,0.00019419,2]
[373346773,1752958241485,-460.0,0.00019419,2]
[373346774,1752958241497,-1307.67,0.00019419,2]
[373346775,1752958241507,-700.0,0.0001942,2]
[373346776,1752958241516,-460.0,0.0001942,2]
[373346777,1752958241526,-648.93,0.0001942,2]
[373346778,1752958241535,-490.63,0.0001942,2]
[373346779,1752958241545,-500.0,0.00019421,2]
[373346780,1752958241554,-1000.0,0.00019421,2]
[373346781,1752958241564,-528.15372949,0.00019429,2]
[373346782,1752958241573,-314.24,0.00019439,2]
[373346783,1752958241583,-460.0,0.00019439,2]
[373346784,1752958241592,-856.82,0.00019439,2]
[373346785,1752958241601,-732.6,0.00019439,2]
[373346786,1752958241610,-460.0,0.00019439,2]
[373346787,1752958241620,-937.34,0.00019439,2]
[373346788,1752958241630,-202.96,0.00019439,2]
[373346789,1752958241640,-476.34170116,0.0001945,2]
[373346790,1752958241649,-160.0,0.00019451,2]
[373346791,1752958241660,-160.0,0.00019451,2]
[373346792,1752958241669,-160.0,0.00019451,2]
[373346793,1752958241679,-160.0,0.00019451,2]
[373346794,1752958241689,-160.0,0.00019451,2]
[373346795,1752958241698,-160.0,0.00019451,2]
[373346796,1752958241708,-839.454303,0.00019451,2]
[373346797,1752958241717,-12612.80205064,0.00019451,2]
[373346798,1752958241727,-160.0,0.00019451,2]
[373346799,1752958241737,-230.94145789,0.00019451,2]
[373346800,1752958241746,-214.52603969,0.00019451,2]
[373346801,1752958241756,-160.0,0.00019451,2]
[373346802,1752958241765,-525.83049785,0.00019451,2]
[373346803,1752958241774,-215.67360783,0.00019451,2]
[373346804,1752958241784,-214.26297717,0.00019473,2]
[373346805,1752958241793,-3249.21134827,0.00019488,2]
[373346806,1752958241803,-124332.83828679,0.0001949,2]
[373346807,1752958241813,-151.0,0.0001949,2]
[373346808,1752958241822,-152.474155,0.0001949,2]
[373346809,1752958241831,-151.0,0.0001949,2]
[373346810,1752958241841,-151.0,0.0001949,2]
[373346811,1752958241850,-151.0,0.0001949,2]
[373346812,1752958241860,-1910.11348581,0.00019509,2]
[373346813,1752958241869,-9423.11190732,0.00019521,2]
[373346814,1752958241878,-1149.19,0.00019692,2]
[373346815,1752958241888,-460.0,0.00019692,2]
[373346816,1752958241898,-1173.99,0.00019692,2]
[373346817,1752958241907,-492.85,0.00019692,2]
[373346818,1752958241917,-460.0,0.00019692,2]
[373346819,1752958241926,-627.36,0.00019692,2]
[373346820,1752958241936,-1624.78,0.00019692,2]
[373346821,1752958241946,-523.23,0.00019693,2]
[373346822,1752958241955,-460.0,0.00019693,2]
[373346823,1752958241964,-314.63,0.00019693,2]
[373346824,1752958241974,-460.0,0.00019693,2]
[373346825,1752958241983,-460.0,0.00019693,2]
[373346826,1752958241993,-460.0,0.00019693,2]
[373346827,1752958242002,-1323.15,0.00019693,2]
[373346828,1752958242012,-460.0,0.00019693,2]
[373346829,1752958242021,-460.0,0.00019693,2]
[373346830,1752958242030,-678.62,0.00019693,2]
[373346831,1752958242040,-513.41,0.00019693,2]
[373346832,1752958242050,-460.0,0.00019693,2]
[373346833,1752958242059,-460.0,0.00019693,2]
[373346834,1752958242069,-1307.67,0.00019693,2]
[373346835,1752958242079,-460.0,0.00019694,2]
[373346836,1752958242255,-648.93,0.00019694,2]
[373346837,1752958242281,-490.63,0.00019694,2]
[373346838,1752958242291,-460.0,0.00019713,2]
[373346839,1752958242301,-856.82,0.00019713,2]
[373346840,1752958242310,-732.6,0.00019713,2]
[373346841,1752958242320,-460.0,0.00019713,2]
[373346842,1752958242329,-937.34,0.00019713,2]
[373346843,1752958242339,-9423.11190732,0.00019728,2]